bitfinex/quotes_SOLUSD_20250609
["timestamp","ask_amount","ask_price","bid_price","bid_amount"]
[1749480978677,6.48688165,154.16,154.13,15.13242405]
[1749480978875,4.85841502,154.15,154.13,15.13242405]
[1749480979082,4.85841502,154.14,154.13,15.13242405]
[1749480979465,4.85841502,154.14,154.11,6.77319472]
[1749480979466,4.85841502,154.14,154.12,15.13242405]
[1749480979667,4.85841502,154.13,154.12,15.13242405]
[1749480981696,4.85841502,154.13,154.12,21.90519774]
[1749480981900,46.64651303,154.17,154.12,21.6208746]
[1749480982073,4.85809108,154.16,154.14,15.13242405]
[1749480982392,4.85809108,154.15,154.14,15.13242405]
[1749480983297,4.85809108,154.15,154.13,0.28432314]
[1749480983597,6.48638476,154.17,154.13,0.28432314]
[1749480983598,4.85809108,154.14,154.13,15.41674719]
[1749480984287,4.85809108,154.14,154.13,21.90477677]
[1749480984493,21.61854812,154.18,154.13,21.90477677]
[1749480984801,4.85730792,154.17,154.16,15.13242405]
[1749480985006,4.85730792,154.17,154.16,15.41674719]
[1749480987871,22.72792866,154.21,154.16,21.90351418]
[1749480987872,4.85730792,154.19,154.16,21.90351418]
[1749480988189,4.85730792,154.18,154.17,6.77066938]
[1749480988381,4.85730792,154.2,154.17,6.77066938]
[1749480988592,4.85730792,154.19,154.17,6.77066938]
[1749480988780,4.85730792,154.18,154.17,6.77066938]
[1749480988977,1.5504,154.21,154.17,6.77066938]
[1749480988978,4.85730792,154.2,154.17,6.77066938]
[1749480989210,4.85730792,154.19,154.17,6.77066938]
[1749480989384,8.03507332,154.21,154.18,15.13242405]
[1749480989581,4.85030081,154.2,154.18,15.13242405]
[1749480989801,4.85030081,154.19,154.18,15.13242405]
[1749480991002,4.85030081,154.2,154.18,15.13242405]
[1749480991221,1.5504,154.21,154.19,15.13242405]
[1749480991394,4.84930979,154.2,154.19,15.13242405]
[1749480993308,11.33439409,154.2,154.18,15.13242405]
[1749480993510,11.33439409,154.2,154.17,15.41674719]
[1749480993897,4.84930979,154.19,154.17,15.41674719]
[1749480994504,11.33439409,154.2,154.17,15.41674719]
[1749480994818,11.33439409,154.2,154.17,15.13242405]
[1749480996919,26.46681814,154.2,154.15,15.13242405]
[1749480997110,19.98173384,154.19,154.14,15.41674719]
[1749480997307,4.84930979,154.18,154.15,15.13242405]
[1749480997512,4.84930979,154.19,154.15,15.13242405]
[1749480997826,4.84930979,154.18,154.15,15.13242405]
[1749480998121,4.84930979,154.19,154.16,15.13242405]
[1749480998327,4.84930979,154.18,154.16,15.13242405]
[1749480998635,4.84930979,154.19,154.16,15.13242405]
[1749480998947,4.84930979,154.18,154.16,15.13242405]
[1749480999121,11.33508493,154.19,154.16,15.13242405]
[1749480999308,4.84930979,154.18,154.16,15.13242405]
[1749480999633,4.84930979,154.19,154.16,15.13242405]
[1749480999818,4.84930979,154.19,154.17,15.13242405]
[1749481000023,4.84930979,154.2,154.17,15.13242405]
[1749481000226,4.84930979,154.19,154.17,15.13242405]
[1749481000426,4.84930979,154.2,154.17,15.13242405]
[1749481000735,4.84930979,154.19,154.17,15.13242405]
[1749481000945,4.84930979,154.2,154.17,15.13242405]
[1749481001109,4.84930979,154.19,154.17,15.13242405]
[1749481001310,4.84930979,154.2,154.17,15.13242405]
[1749481001617,4.84930979,154.19,154.17,15.13242405]
[1749481001817,4.84930979,154.2,154.18,15.13242405]
[1749481002016,4.84930979,154.21,154.19,15.13242405]
[1749481002335,4.84930979,154.22,154.2,15.13242405]
[1749481002519,4.84930979,154.23,154.2,15.13242405]
[1749481002724,4.84930979,154.22,154.2,15.13242405]
[1749481002918,4.84930979,154.23,154.2,15.13242405]
[1749481003124,4.84930979,154.22,154.2,15.13242405]
[1749481003430,4.84930979,154.23,154.2,15.13242405]
[1749481003739,4.84930979,154.22,154.2,15.13242405]
[1749481004110,4.84930979,154.22,154.19,21.61790351]
[1749481004335,4.84930979,154.22,154.19,15.13242405]
[1749481004721,19.98173384,154.22,154.18,0.28432314]
[1749481005041,19.98173384,154.21,154.17,15.13242405]
[1749481005215,21.6174348,154.21,154.17,15.13242405]
[1749481005417,26.46674459,154.21,154.17,15.13242405]
[1749481005617,21.6174348,154.21,154.17,15.13242405]
[1749481005832,4.84930979,154.2,154.17,15.13242405]
[1749481007029,21.6174348,154.21,154.17,15.13242405]
[1749481007533,4.84930979,154.2,154.17,15.13242405]
[1749481007946,6.48501075,154.21,154.18,15.13242405]
[1749481008317,6.48501075,154.21,154.17,15.13242405]
[1749481008727,21.6174348,154.21,154.17,0.28432314]
[1749481008921,15.13242405,154.2,154.16,15.13242405]
[1749481009122,15.13242405,154.19,154.13,104.68797995]
[1749481009434,6.48634624,154.17,154.14,0.28432314]
[1749481009619,6.48634624,154.17,154.14,15.41674719]
[1749481009819,6.48634624,154.17,154.13,10.5]
[1749481010017,15.13242405,154.16,154.11,15.13242405]
[1749481010229,15.13242405,154.13,154.09,10.38]
[1749481010446,15.13242405,154.13,154.09,25.51242405]
[1749481010630,15.13242405,154.12,154.09,10.38]
[1749481010834,15.13242405,154.12,154.08,15.13242405]
[1749481011041,16.79232405,154.14,154.09,15.13242405]
[1749481011340,23.28012352,154.14,154.09,15.13242405]
[1749481011536,23.28012352,154.14,154.1,15.13242405]
[1749481012248,1.6599,154.14,154.1,15.13242405]
[1749481012441,8.14756373,154.14,154.1,15.13242405]
[1749481012834,23.27998778,154.14,154.1,15.13242405]
[1749481013037,16.79232405,154.14,154.1,15.13242405]
[1749481013240,1.6599,154.14,154.11,15.13242405]
[1749481013541,61.47901969,154.17,154.12,15.41674719]
[1749481015048,21.61948611,154.16,154.12,15.41674719]
[1749481016250,6.48706206,154.16,154.12,15.41674719]
[1749481016745,61.47891761,154.17,154.12,21.90515756]
[1749481016948,61.47891761,154.17,154.13,15.13242405]
[1749481017151,46.34649356,154.17,154.13,15.13242405]
[1749481017647,46.34649356,154.17,154.13,21.62045062]
[1749481017950,46.34649356,154.17,154.13,15.13242405]
[1749481018257,51.19097566,154.17,154.13,15.13242405]
[1749481018647,4.8444821,154.17,154.13,21.62044809]
[1749481018956,11.33091413,154.17,154.13,15.13242405]
[1749481019327,4.8444821,154.16,154.13,15.13242405]
[1749481019527,26.46333818,154.17,154.13,15.13242405]
[1749481019728,4.8444821,154.16,154.13,15.13242405]
[1749481020533,4.8444821,154.16,154.12,15.41674719]
[1749481021240,4.8444821,154.16,154.13,15.13242405]
[1749481021550,4.8444821,154.17,154.15,15.13242405]
[1749481021741,4.8444821,154.18,154.15,15.13242405]
[1749481021941,4.8444821,154.17,154.15,15.13242405]
[1749481022141,11.33042714,154.18,154.14,15.41674719]
[1749481022340,4.8444821,154.17,154.14,15.41674719]
[1749481022743,4.8444821,154.17,154.14,0.28432314]
[1749481022939,19.97690615,154.17,154.13,15.13242405]
[1749481023353,11.33126807,154.16,154.13,15.13242405]
[1749481024029,11.33126807,154.16,154.12,15.41674719]
[1749481024231,4.8444821,154.16,154.14,15.13242405]
[1749481024450,4.8444821,154.17,154.14,15.13242405]
[1749481024637,4.8444821,154.16,154.14,15.13242405]
[1749481024840,15.13242405,154.19,154.14,15.13242405]
[1749481024841,4.8444821,154.18,154.14,15.13242405]
[1749481025047,4.8444821,154.17,154.14,15.13242405]
[1749481025249,4.8444821,154.18,154.14,15.13242405]
[1749481025449,4.8444821,154.17,154.14,15.13242405]
[1749481025850,4.84945655,154.16,154.14,15.13242405]
[1749481026153,6.48594795,154.18,154.14,15.13242405]
[1749481026154,4.84945655,154.17,154.14,15.13242405]
[1749481026356,21.61804789,154.19,154.15,15.41674719]
[1749481026553,4.84994597,154.18,154.16,15.13242405]
[1749481026752,21.18802667,154.21,154.16,15.13242405]
[1749481026753,21.61734308,154.21,154.16,15.13242405]
[1749481026961,19.98199203,154.2,154.16,15.13242405]
[1749481027143,4.84956798,154.19,154.16,15.13242405]
[1749481027344,4.84956798,154.18,154.16,15.13242405]
[1749481027561,4.84997615,154.19,154.16,15.13242405]
[1749481027744,4.84997615,154.18,154.16,15.13242405]
[1749481027946,15.13242405,154.19,154.15,0.28432314]
[1749481028143,4.85019946,154.18,154.14,15.13242405]
[1749481028359,4.85019946,154.17,154.14,15.13242405]
[1749481028543,4.85019946,154.18,154.14,15.13242405]
[1749481028857,4.85019946,154.17,154.14,15.13242405]
[1749481029057,4.85019946,154.18,154.15,15.13242405]
[1749481029262,4.85019946,154.17,154.15,15.13242405]
[1749481029465,11.33652981,154.18,154.15,15.13242405]
[1749481029637,4.85019946,154.17,154.15,15.13242405]
[1749481030556,4.85019946,154.17,154.16,15.13242405]
[1749481030763,4.85074285,154.18,154.16,15.13242405]
[1749481030949,6.48552009,154.19,154.15,15.41674719]
[1749481031146,4.85075982,154.18,154.16,15.13242405]
[1749481031347,4.85102775,154.17,154.16,15.13242405]
[1749481031556,4.85102775,154.18,154.16,15.13242405]
[1749481031742,6.48552009,154.19,154.16,15.13242405]
[1749481031941,4.8507228,154.18,154.17,15.13242405]
[1749481032140,4.8507228,154.19,154.17,15.13242405]
[1749481032459,4.8507228,154.18,154.16,15.13242405]
[1749481032665,4.8507228,154.17,154.15,15.13242405]
[1749481033572,4.8507228,154.16,154.11,61.51824242]
[1749481033749,4.8507228,154.15,154.12,15.41674719]
[1749481034076,6.48614517,154.18,154.13,15.13242405]
[1749481034077,4.8507228,154.16,154.13,15.13242405]
[1749481034273,4.8507228,154.15,154.13,15.13242405]
[1749481034487,6.48676699,154.16,154.13,15.13242405]
[1749481034660,4.85130751,154.15,154.13,15.13242405]
[1749481035477,4.85130751,154.15,154.12,0.28432314]
[1749481035478,4.85105966,154.17,154.15,0.14216157]
[1749481035654,4.85061232,154.19,154.16,15.13242405]
[1749481035862,4.85061232,154.18,154.17,15.13242405]
[1749481036262,4.85061232,154.18,154.16,15.13242405]
[1749481036473,6.48543638,154.2,154.16,15.13242405]
[1749481036679,4.85071723,154.19,154.16,15.13242405]
[1749481036866,4.85071723,154.18,154.16,15.13242405]
[1749481037067,6.48543638,154.2,154.16,15.13242405]
[1749481037361,4.850687,154.19,154.17,0.28432314]
[1749481037573,8.03409725,154.22,154.16,6.48673567]
[1749481037574,4.850687,154.21,154.18,15.27458562]
[1749481037772,4.850687,154.2,154.19,15.13242405]
[1749481039754,11.33579943,154.2,154.18,15.13242405]
[1749481039953,4.850687,154.19,154.18,15.13242405]
[1749481040354,4.850687,154.19,154.17,0.14216157]
[1749481040566,4.850687,154.2,154.18,15.13242405]
[1749481040762,4.850687,154.19,154.18,15.13242405]
[1749481041078,4.850687,154.2,154.18,15.13242405]
[1749481041382,4.850687,154.19,154.18,15.13242405]
[1749481043187,11.3363133,154.19,154.15,10.36]
[1749481043400,4.850687,154.18,154.14,41.13242405]
[1749481043600,4.850687,154.17,154.14,41.13242405]
[1749481043772,4.850687,154.18,154.14,15.13242405]
[1749481043974,4.850687,154.17,154.15,15.13242405]
[1749481044285,4.850687,154.18,154.16,15.13242405]
[1749481044596,6.48523559,154.2,154.16,15.13242405]
[1749481044900,4.85031823,154.19,154.16,15.13242405]
[1749481045083,4.85031823,154.18,154.16,15.13242405]
[1749481045286,4.85041813,154.19,154.16,15.13242405]
[1749481045480,4.85041813,154.18,154.16,15.13242405]
[1749481045685,4.85041813,154.19,154.16,15.13242405]
[1749481045900,4.85041813,154.18,154.16,0.28432314]
[1749481046080,4.85041813,154.17,154.16,0.28432314]
[1749481046281,4.85041813,154.19,154.16,0.28432314]
[1749481046485,4.85041813,154.18,154.16,0.28432314]
[1749481046800,4.85041813,154.17,154.16,0.28432314]
[1749481046999,11.33627381,154.19,154.16,0.28432314]
[1749481047301,4.85041813,154.18,154.15,15.13242405]
[1749481047499,6.48585568,154.19,154.15,15.13242405]
[1749481047500,4.85041813,154.17,154.15,15.13242405]
[1749481047706,4.85041813,154.18,154.15,15.13242405]
[1749481048000,4.85041813,154.17,154.15,15.13242405]
[1749481048193,4.85041813,154.18,154.15,15.13242405]
[1749481048398,4.85041813,154.17,154.15,15.13242405]
[1749481048598,6.48650398,154.17,154.14,15.41674719]
[1749481048788,4.85226188,154.16,154.14,15.41674719]
[1749481049500,6.48650398,154.17,154.14,15.41674719]
[1749481049807,4.85306161,154.16,154.14,15.41674719]
[1749481050109,6.48650398,154.17,154.14,15.41674719]
[1749481050304,4.85313143,154.16,154.14,15.41674719]
[1749481050515,15.13242405,154.19,154.15,15.13242405]
[1749481050684,4.85314469,154.18,154.17,15.13242405]
[1749481052994,4.85314469,154.18,154.17,21.90309343]
[1749481053201,4.85314469,154.21,154.18,18.933972]
[1749481053400,4.85137591,154.23,154.21,0.28432314]
[1749481053620,6.48298217,154.25,154.22,15.13242405]
[1749481053806,4.85136979,154.24,154.22,15.13242405]
[1749481054014,4.85136979,154.23,154.22,15.13242405]
[1749481055018,4.85136979,154.24,154.22,15.13242405]
[1749481055223,27.6633,154.28,154.22,15.13242405]
[1749481055224,4.85136979,154.23,154.22,15.13242405]
[1749481055435,21.6159376,154.24,154.19,15.13242405]
[1749481055611,19.98379384,154.23,154.19,0.28432314]
[1749481055810,4.85136979,154.22,154.19,0.28432314]
[1749481056026,4.85136979,154.21,154.19,15.41674719]
[1749481056225,4.85136979,154.2,154.19,15.41674719]
[1749481056398,4.85136979,154.22,154.19,15.41674719]
[1749481056599,4.85136979,154.21,154.19,15.41674719]
[1749481056913,4.85136979,154.2,154.19,15.41674719]
[1749481057121,11.33567881,154.22,154.19,15.41674719]
[1749481057334,4.85136979,154.21,154.19,15.41674719]
[1749481057631,4.85136979,154.2,154.19,15.41674719]
[1749481057819,4.85136979,154.21,154.19,15.41674719]
[1749481058126,4.85136979,154.2,154.19,15.41674719]
[1749481058307,4.85136979,154.21,154.19,15.41674719]
[1749481058520,4.85136979,154.2,154.19,15.41674719]
[1749481058719,4.85136979,154.21,154.19,15.41674719]
[1749481059035,4.85136979,154.2,154.19,0.28432314]
[1749481059424,4.84787991,154.2,154.19,0.28432314]
[1749481060131,4.84787991,154.2,154.18,15.13242405]
[1749481060333,4.84787991,154.2,154.17,15.41674719]
[1749481060834,4.84787991,154.19,154.17,15.41674719]
[1749481061130,4.84787991,154.2,154.18,15.13242405]
[1749481061338,4.84787991,154.19,154.18,15.41674719]
[1749481061509,4.84787991,154.2,154.18,15.41674719]
[1749481061830,6.48487932,154.21,154.18,15.41674719]
[1749481062036,4.84875363,154.2,154.18,15.41674719]
[1749481062235,6.48487932,154.21,154.18,15.41674719]
[1749481062433,4.84879823,154.2,154.18,15.41674719]
[1749481062636,6.48487932,154.21,154.18,15.41674719]
[1749481062837,4.84899199,154.2,154.18,15.41674719]
[1749481063136,4.84899199,154.19,154.18,15.41674719]
[1749481063329,4.84899199,154.2,154.18,15.41674719]
[1749481063530,4.84899199,154.19,154.18,15.41674719]
[1749481063714,4.84899199,154.2,154.18,15.41674719]
[1749481064017,4.84899199,154.19,154.18,15.41674719]
[1749481064343,4.84899199,154.2,154.18,15.41674719]
[1749481064521,4.84899199,154.19,154.18,15.41674719]
[1749481064724,4.84940246,154.2,154.18,15.41674719]
[1749481064923,4.84934101,154.2,154.19,15.13242405]
[1749481065246,1.5214,154.23,154.19,15.13242405]
[1749481065247,4.84934101,154.22,154.19,15.13242405]
[1749481065542,4.84934101,154.21,154.2,15.13242405]
[1749481065714,4.84934101,154.22,154.2,15.13242405]
[1749481065917,4.84934101,154.21,154.2,15.13242405]
[1749481066242,4.84934101,154.22,154.2,15.13242405]
[1749481066449,4.84934101,154.21,154.19,15.41674719]
[1749481067335,4.84934101,154.22,154.19,15.41674719]
[1749481067532,4.84934101,154.21,154.19,15.41674719]
[1749481067852,6.48428971,154.22,154.19,15.41674719]
[1749481068022,4.84886906,154.21,154.19,15.41674719]
[1749481068223,6.48428971,154.22,154.19,15.41674719]
[1749481068450,4.84896768,154.21,154.19,15.41674719]
[1749481069019,4.84896768,154.22,154.19,15.41674719]
[1749481069225,4.84896768,154.21,154.19,15.41674719]
[1749481069545,4.84896768,154.22,154.2,15.13242405]
[1749481069740,4.84896768,154.21,154.2,15.13242405]
[1749481070047,4.84896768,154.22,154.2,15.13242405]
[1749481070235,4.84896768,154.21,154.2,15.13242405]
[1749481070425,4.84896768,154.22,154.2,15.13242405]
[1749481070620,4.84896768,154.21,154.2,15.13242405]
[1749481070815,4.84896768,154.22,154.2,15.13242405]
[1749481071027,4.84896768,154.21,154.2,15.13242405]
[1749481071227,4.84896768,154.22,154.2,15.13242405]
[1749481071448,4.84896768,154.21,154.2,15.13242405]
[1749481071646,15.13242405,154.21,154.17,0.28432314]
[1749481071833,15.13242405,154.19,154.14,15.13242405]
[1749481072037,4.84896768,154.18,154.14,15.13242405]
[1749481072239,4.84896768,154.18,154.15,15.13242405]
[1749481072453,4.84896768,154.2,154.16,15.13242405]
[1749481072654,4.84896768,154.19,154.16,15.13242405]
[1749481072837,4.84896768,154.18,154.16,15.13242405]
[1749481073035,11.33444759,154.2,154.16,15.13242405]
[1749481073329,4.84896768,154.19,154.16,15.13242405]
[1749481073529,54.97242405,154.21,154.16,15.13242405]
[1749481073530,46.32478426,154.21,154.18,15.13242405]
[1749481073762,4.84978104,154.2,154.18,15.13242405]
[1749481073934,4.84978104,154.19,154.18,15.13242405]
[1749481074135,4.84978104,154.2,154.17,15.13242405]
[1749481074453,4.84978104,154.19,154.17,15.13242405]
[1749481074658,4.84978104,154.2,154.17,15.13242405]
[1749481074859,4.84978104,154.19,154.17,15.13242405]
[1749481075060,4.84978104,154.2,154.18,15.13242405]
[1749481075262,4.84963054,154.2,154.18,15.13242405]
[1749481075435,21.61672445,154.22,154.18,15.13242405]
[1749481075629,4.84971478,154.21,154.18,15.13242405]
[1749481075829,4.84971478,154.2,154.18,15.13242405]
[1749481076045,4.84971478,154.19,154.18,15.13242405]
[1749481076246,11.33445333,154.21,154.18,15.13242405]
[1749481076461,4.84971478,154.2,154.18,15.13242405]
[1749481076634,4.84971478,154.19,154.18,15.13242405]
[1749481076835,4.84971478,154.2,154.18,15.13242405]
[1749481077037,4.84971478,154.19,154.18,15.13242405]
[1749481077257,4.84971478,154.2,154.18,15.13242405]
[1749481077459,4.84971478,154.19,154.18,15.13242405]
[1749481077629,4.84971478,154.2,154.18,15.13242405]
[1749481077835,4.84971478,154.19,154.17,15.13242405]
[1749481078145,4.84971478,154.2,154.17,15.13242405]
[1749481078346,4.84971478,154.19,154.17,15.13242405]
[1749481078547,4.84971478,154.2,154.17,15.13242405]
[1749481078844,4.84971478,154.19,154.17,15.13242405]
[1749481079161,4.84971478,154.2,154.17,15.13242405]
[1749481079353,4.85108214,154.19,154.17,15.13242405]
[1749481079546,6.48473855,154.21,154.17,15.13242405]
[1749481079855,4.85108047,154.2,154.18,15.13242405]
[1749481080053,4.85108047,154.19,154.18,15.13242405]
[1749481080262,4.85108047,154.21,154.18,15.13242405]
[1749481080440,4.85108047,154.2,154.18,15.13242405]
[1749481080758,4.85108047,154.19,154.17,15.13242405]
[1749481080977,4.85108047,154.19,154.15,15.13242405]
[1749481080978,4.8521229,154.18,154.15,15.13242405]
[1749481081267,15.13242405,154.19,154.15,0.28432314]
[1749481081268,4.8521229,154.17,154.15,0.28432314]
[1749481081468,4.8521229,154.18,154.15,0.28432314]
[1749481081644,4.8521229,154.17,154.15,15.41674719]
[1749481081840,4.8521229,154.19,154.16,21.6191234]
[1749481082054,4.8521229,154.18,154.17,15.13242405]
[1749481082365,4.8521229,154.18,154.16,15.13242405]
[1749481082566,6.4851209,154.2,154.16,15.13242405]
[1749481082775,4.85230981,154.19,154.16,15.13242405]
[1749481082949,4.85230981,154.18,154.16,15.13242405]
[1749481083144,6.4851209,154.2,154.16,15.13242405]
[1749481083340,4.85239104,154.19,154.16,15.13242405]
[1749481083540,6.4851209,154.2,154.16,15.13242405]
[1749481083541,4.85239104,154.18,154.16,15.13242405]
[1749481083745,6.4851209,154.2,154.16,15.13242405]
[1749481083941,4.85232169,154.19,154.16,15.13242405]
[1749481084170,4.85232169,154.18,154.17,15.13242405]
[1749481084368,4.85232169,154.2,154.17,15.13242405]
[1749481084690,4.85232169,154.19,154.17,15.13242405]
[1749481084969,6.48476108,154.21,154.17,15.13242405]
[1749481085165,4.85202483,154.2,154.17,15.13242405]
[1749481085365,4.85202483,154.19,154.17,15.13242405]
[1749481085575,6.48476108,154.21,154.17,15.13242405]
[1749481085866,4.85199477,154.2,154.17,15.13242405]
[1749481086070,4.85199477,154.19,154.17,15.13242405]
[1749481086273,21.61718513,154.21,154.17,15.13242405]
[1749481086468,4.85188703,154.2,154.17,15.13242405]
[1749481086771,4.85188703,154.19,154.17,15.13242405]
[1749481086972,6.48511273,154.2,154.16,15.13242405]
[1749481087153,4.85209975,154.19,154.16,15.13242405]
[1749481087352,6.48511273,154.2,154.16,15.13242405]
[1749481087552,4.85199098,154.19,154.16,15.13242405]
[1749481087752,6.48511273,154.2,154.17,15.13242405]
[1749481088066,4.85214956,154.19,154.16,15.13242405]
[1749481088264,4.85214956,154.18,154.16,15.13242405]
[1749481088464,4.85214956,154.19,154.16,15.13242405]
[1749481088665,4.85214956,154.18,154.15,15.41674719]
[1749481088868,4.85274578,154.17,154.14,25.49242405]
[1749481089063,15.13242405,154.18,154.14,25.49242405]
[1749481089261,4.85290471,154.17,154.14,25.49242405]
[1749481089457,4.85290471,154.16,154.14,10.36]
[1749481089658,4.85278582,154.17,154.14,15.13242405]
[1749481089864,4.85278582,154.16,154.14,15.13242405]
[1749481090193,4.85278582,154.17,154.15,15.13242405]
[1749481090481,4.85278582,154.2,154.16,15.13242405]
[1749481090687,4.85278582,154.19,154.16,15.13242405]
[1749481090871,4.85278582,154.18,154.16,15.13242405]
[1749481091052,6.48527643,154.2,154.16,15.13242405]
[1749481091249,4.85234699,154.19,154.18,15.13242405]
[1749481091963,4.85234699,154.19,154.17,15.13242405]
[1749481092164,4.85234699,154.18,154.17,15.13242405]
[1749481092473,4.85234699,154.2,154.17,15.13242405]
[1749481092672,4.85234699,154.19,154.17,15.13242405]
[1749481092875,4.85234699,154.18,154.17,15.13242405]
[1749481093082,4.85234699,154.2,154.17,15.13242405]
[1749481093278,4.85234699,154.19,154.17,15.13242405]
[1749481093487,4.85234699,154.18,154.17,15.13242405]
[1749481093658,4.85234699,154.2,154.17,15.13242405]
[1749481093857,4.85234699,154.19,154.17,21.61873615]
[1749481094055,4.85234699,154.18,154.17,21.61873615]
[1749481094258,4.8530341,154.2,154.17,21.61873615]
[1749481094458,4.8530341,154.19,154.17,21.61873615]
[1749481094666,4.8530341,154.18,154.17,21.61873615]
[1749481095675,4.8530341,154.18,154.17,15.13242405]
[1749481097595,4.8530341,154.18,154.16,6.48659072]
[1749481097796,6.48516841,154.2,154.16,15.41674719]
[1749481097973,4.85531233,154.19,154.16,15.41674719]
[1749481098175,4.85531233,154.18,154.16,15.41674719]
[1749481098373,6.48516841,154.2,154.16,15.41674719]
[1749481098595,4.85521494,154.19,154.16,15.41674719]
[1749481098774,4.85521494,154.18,154.16,21.90345159]
[1749481099090,21.19227394,154.22,154.17,15.13242405]
[1749481099284,4.855086,154.21,154.18,15.13242405]
[1749481099489,4.855086,154.2,154.18,15.13242405]
[1749481099706,4.855086,154.19,154.18,15.13242405]
[1749481100673,4.855086,154.19,154.17,15.13242405]
[1749481100895,4.855086,154.18,154.17,15.13242405]
[1749481102098,4.855086,154.18,154.17,15.41674719]
[1749481102276,4.855086,154.18,154.17,21.90309343]
[1749481102471,4.8570999,154.21,154.18,0.28432314]
[1749481102712,4.8570999,154.2,154.18,0.28432314]
[1749481102996,1.5214,154.23,154.18,0.28432314]
[1749481103175,4.85685138,154.22,154.18,0.28432314]
[1749481103492,4.85685138,154.21,154.18,6.76986066]
[1749481103701,4.85685138,154.2,154.18,6.76986066]
[1749481103884,1.5214,154.23,154.19,15.13242405]
[1749481104088,4.85639084,154.22,154.21,15.13242405]
[1749481104398,4.85639084,154.22,154.18,6.76986066]
[1749481104399,4.85639084,154.22,154.2,15.13242405]
[1749481104700,4.85639084,154.21,154.2,15.13242405]
[1749481110707,4.85639084,154.21,154.2,15.41674719]
[1749481110913,4.85639084,154.21,154.2,21.90183149]
[1749481114108,4.85639084,154.22,154.2,21.90183149]
[1749481114411,1.5214,154.23,154.2,21.90183149]
[1749481114725,4.85194052,154.22,154.21,15.13242405]
[1749481116504,4.85194052,154.22,154.19,15.13242405]
[1749481116692,11.33628903,154.22,154.18,15.41674719]
[1749481116899,4.85194052,154.21,154.18,15.41674719]
[1749481117096,4.85194052,154.2,154.18,15.41674719]
[1749481117405,6.48434851,154.22,154.18,15.41674719]
[1749481117611,4.85141793,154.21,154.18,15.41674719]
[1749481117909,4.85141793,154.2,154.18,15.41674719]
[1749481118105,4.85141793,154.19,154.18,15.41674719]
[1749481118492,4.85141793,154.21,154.18,14.97663548]
[1749481118692,4.85141793,154.2,154.18,14.97663548]
[1749481119011,4.85141793,154.19,154.18,14.97663548]
[1749481124121,4.85141793,154.2,154.18,14.97663548]
[1749481124298,4.85141793,154.19,154.18,14.97663548]
[1749481124496,4.85141793,154.2,154.18,14.97663548]
[1749481124699,4.85141793,154.19,154.18,14.97663548]
[1749481125233,4.85141793,154.2,154.18,21.46244688]
[1749481125415,4.84913887,154.22,154.19,15.13242405]
[1749481125600,4.84913887,154.21,154.17,0.28432314]
[1749481125799,4.84913887,154.2,154.17,15.13242405]
[1749481126019,4.84913887,154.19,154.17,15.13242405]
[1749481126212,15.13242405,154.22,154.17,15.13242405]
[1749481126412,4.8484293,154.21,154.17,15.13242405]
[1749481126596,4.8484293,154.2,154.17,15.13242405]
[1749481126801,4.8484293,154.19,154.17,15.13242405]
[1749481127022,15.13242405,154.22,154.17,15.13242405]
[1749481127226,6.4850843,154.2,154.17,15.13242405]
[1749481127401,4.84855149,154.19,154.17,15.13242405]
[1749481127603,4.84836151,154.18,154.16,25.49242405]
[1749481127815,21.61750835,154.2,154.15,15.13242405]
[1749481128011,4.84811253,154.19,154.15,15.13242405]
[1749481128220,4.84811253,154.19,154.14,26.0]
[1749481128221,19.98053658,154.18,154.14,41.13242405]
[1749481128412,4.84811253,154.17,154.14,41.13242405]
[1749481128612,4.84811253,154.16,154.14,41.13242405]
[1749481128812,15.13242405,154.18,154.14,26.0]
[1749481129018,4.84649364,154.17,154.13,15.41674719]
[1749481129328,4.84649364,154.16,154.13,15.41674719]
[1749481129526,6.48642908,154.17,154.13,15.41674719]
[1749481129713,4.84544551,154.16,154.13,21.904759]
[1749481129913,6.48642908,154.17,154.13,21.904759]
[1749481130114,4.84551827,154.16,154.13,21.904759]
[1749481130321,6.48642908,154.17,154.13,21.904759]
[1749481130512,4.84553098,154.16,154.13,21.904759]
[1749481130908,4.84553098,154.16,154.13,15.41674719]
[1749481132104,4.84553098,154.16,154.13,21.90477338]
[1749481132531,4.84553098,154.16,154.13,15.41674719]
[1749481133939,4.84553098,154.16,154.14,15.13242405]
[1749481134118,4.84553098,154.16,154.13,6.77233607]
[1749481134119,4.84553098,154.17,154.15,15.13242405]
[1749481134323,4.84553098,154.2,154.16,15.13242405]
[1749481134524,4.84553098,154.19,154.17,15.13242405]
[1749481134830,4.84553098,154.18,154.16,15.13242405]
[1749481135041,4.84553098,154.2,154.16,15.13242405]
[1749481135232,4.84553098,154.19,154.16,15.13242405]
[1749481135417,4.84553098,154.18,154.16,15.13242405]
[1749481135623,4.84553098,154.19,154.16,15.13242405]
[1749481135941,4.84553098,154.18,154.16,15.13242405]
[1749481136142,4.84553098,154.19,154.16,15.13242405]
[1749481136348,4.84553098,154.18,154.16,15.13242405]
[1749481136539,4.84553098,154.19,154.16,15.13242405]
[1749481136844,4.84269371,154.18,154.16,15.13242405]
[1749481137041,4.84269371,154.19,154.16,15.13242405]
[1749481137347,4.8425962,154.18,154.16,15.13242405]